bitfinex/quotes_SOLUSD_20250706
["timestamp","ask_amount","ask_price","bid_price","bid_amount"]
[1751773108333,3.92750884,147.26,147.23,94.93180203]
[1751773111157,7.62028401,147.25,147.23,94.93180203]
[1751773111360,3.92750884,147.26,147.23,94.93180203]
[1751773111546,7.62098139,147.25,147.23,94.93180203]
[1751773111858,3.92750884,147.26,147.23,94.93180203]
[1751773112061,7.62098139,147.25,147.23,94.93180203]
[1751773112359,3.92750884,147.26,147.23,94.93180203]
[1751773112538,7.62256756,147.25,147.23,94.93180203]
[1751773112738,3.92750884,147.26,147.23,94.93180203]
[1751773112939,7.62256756,147.25,147.23,94.93180203]
[1751773113132,3.92750884,147.26,147.23,94.93180203]
[1751773113336,7.62437681,147.25,147.23,94.93180203]
[1751773113537,3.92750884,147.26,147.23,94.93180203]
[1751773113834,7.62437681,147.25,147.23,94.93180203]
[1751773114034,3.92750884,147.26,147.23,94.93180203]
[1751773114236,7.6262366,147.25,147.23,94.93180203]
[1751773114433,3.92750884,147.26,147.23,94.93180203]
[1751773114661,7.62646034,147.25,147.23,94.93180203]
[1751773114853,3.92750884,147.26,147.23,94.93180203]
[1751773115054,7.62646034,147.25,147.23,94.93180203]
[1751773115258,3.92750884,147.26,147.23,94.93180203]
[1751773115560,7.62892106,147.25,147.23,94.93180203]
[1751773115758,3.92750884,147.26,147.23,94.93180203]
[1751773115960,11.496438,147.25,147.23,94.93180203]
[1751773116155,3.86750884,147.25,147.23,94.93180203]
[1751773116363,7.63195178,147.24,147.23,94.93180203]
[1751773137592,7.69195178,147.24,147.23,94.93180203]
[1751773149185,0.06,147.26,147.23,115.77954587]
[1751773149387,0.06,147.26,147.24,3.86750884]
[1751773151487,0.06,147.26,147.25,6.79117147]
[1751773152187,0.06,147.26,147.25,10.65868031]
[1751773152395,0.06,147.26,147.25,98.79868031]
[1751773158100,0.06,147.28,147.25,112.05126173]
[1751773158304,0.06,147.28,147.26,3.86750884]
[1751773158591,0.06,147.28,147.26,92.00750884]
[1751773159193,0.06,147.28,147.27,6.7902492]
[1751773162098,0.06,147.28,147.27,94.9302492]
[1751773190026,7.68424614,147.28,147.27,94.9302492]
[1751773225555,7.68424614,147.28,147.27,88.14]
[1751773225747,11.55175498,147.28,147.27,88.14]
[1751773226158,11.55175498,147.28,147.27,94.9302492]
[1751773242175,7.68424614,147.28,147.27,94.9302492]
[1751773255671,11.55175498,147.28,147.27,94.9302492]
[1751773261188,11.55175498,147.28,147.27,88.14]
[1751773263078,7.68424614,147.28,147.27,94.9302492]
[1751773263286,11.55175498,147.28,147.27,94.9302492]
[1751773270206,7.68424614,147.28,147.27,94.9302492]
[1751773273904,11.55175498,147.28,147.27,94.9302492]
[1751773276207,11.49175498,147.28,147.27,94.9302492]
[1751773279009,7.62424614,147.28,147.27,94.9302492]
[1751773279206,11.49175498,147.28,147.27,94.9302492]
[1751773286120,7.62424614,147.28,147.27,94.9302492]
[1751773288017,11.49175498,147.28,147.27,94.9302492]
[1751773289520,11.49175498,147.28,147.27,94.9602492]
[1751773289820,11.55175498,147.28,147.27,94.9602492]
[1751773292419,11.55175498,147.28,147.27,88.17]
[1751773296411,11.57044127,147.28,147.27,88.17]
[1751773302824,11.57044127,147.28,147.27,94.9602492]
[1751773303017,7.70293243,147.28,147.27,94.9602492]
[1751773305531,7.70390393,147.28,147.27,94.9602492]
[1751773327383,11.57141277,147.28,147.27,94.9602492]
[1751773327676,7.70390393,147.28,147.27,94.9602492]
[1751773330049,7.69908339,147.28,147.27,94.9602492]
[1751773334386,7.69908339,147.28,147.27,88.17]
[1751773334566,11.56659223,147.28,147.27,88.17]
[1751773335984,27.03662759,147.28,147.27,0.03]
[1751773336153,26.0,147.26,147.25,0.03]
[1751773336356,81.15721251,147.26,147.25,0.03]
[1751773337482,71.60659223,147.26,147.25,0.03]
[1751773338168,78.39730253,147.26,147.25,0.03]
[1751773338369,87.94792281,147.26,147.25,0.03]
[1751773341265,78.39730253,147.26,147.25,0.03]
[1751773348189,97.04695139,147.26,147.25,0.03]
[1751773361501,67.73908339,147.26,147.25,0.03]
[1751773361685,71.60659223,147.26,147.25,0.03]
[1751773365001,67.73908339,147.26,147.25,0.03]
[1751773365191,71.60659223,147.26,147.25,0.03]
[1751773367696,67.73908339,147.26,147.25,0.03]
[1751773368001,71.60659223,147.26,147.25,0.03]
[1751773369805,63.96750884,147.26,147.25,0.03]
[1751773370003,71.57336585,147.26,147.25,0.03]
[1751773375483,67.70585701,147.26,147.25,0.03]
[1751773375697,41.71781573,147.26,147.25,0.03]
[1751773375907,11.48532457,147.26,147.25,0.03]
[1751773376088,45.58532457,147.26,147.25,0.03]
[1751773376288,45.60532457,147.26,147.25,0.03]
[1751773377105,11.48532457,147.26,147.25,0.03]
[1751773377284,7.61781573,147.26,147.25,0.03]
[1751773379602,11.48532457,147.26,147.25,0.03]
[1751773381012,11.48532457,147.26,147.25,88.17]
[1751773386915,11.48532457,147.26,147.25,0.03]
[1751773389918,18.27603487,147.26,147.25,0.03]
[1751773390123,21.00759424,147.26,147.25,0.03]
[1751773390908,27.79830454,147.26,147.25,0.03]
[1751773391302,17.1400854,147.26,147.25,0.03]
[1751773391502,21.00759424,147.26,147.25,0.03]
[1751773395824,17.1400854,147.26,147.25,0.03]
[1751773396126,11.48532457,147.26,147.25,0.03]
[1751773396514,7.61781573,147.26,147.25,0.03]
[1751773398738,7.61781573,147.26,147.25,95.02117147]
[1751773409440,7.61781573,147.26,147.25,98.88868031]
[1751773411233,7.61781573,147.26,147.25,100.47788031]
[1751773412742,7.61781573,147.26,147.25,12.27788031]
[1751773413839,0.06,147.27,147.25,12.27788031]
[1751773416650,0.06,147.27,147.25,100.47788031]
[1751773422053,0.06,147.27,147.25,96.61037147]
[1751773425532,0.06,147.27,147.25,95.02117147]
[1751773426328,0.06,147.27,147.25,98.88868031]
[1751773438988,0.06,147.27,147.25,95.02117147]
[1751773440058,7.63015946,147.26,147.25,95.02117147]
[1751773448190,7.63477983,147.26,147.25,95.02117147]
[1751773458471,7.63477983,147.26,147.25,98.88868031]
[1751773460092,7.63477983,147.26,147.25,95.02117147]
[1751773460295,7.63477983,147.26,147.25,98.88868031]
[1751773463601,0.06,147.27,147.25,98.88868031]
[1751773463900,0.06,147.27,147.26,3.86750884]
[1751773464599,0.2,147.3,147.27,88.19999999]
[1751773464902,0.2,147.3,147.29,3.86750884]
[1751773465086,0.2,147.3,147.29,98.856836]
[1751773465495,0.2,147.3,147.29,94.98932716]
[1751773468593,0.2,147.3,147.29,94.98932716]
[1751773473997,4.06750884,147.3,147.29,94.98932716]
[1751773475604,11.68630715,147.3,147.29,94.98932716]
[1751773475808,11.68630715,147.3,147.28,6.78978815]
[1751773476114,7.61879831,147.29,147.28,6.78978815]
[1751773477008,7.6188209,147.29,147.28,6.78978815]
[1751773480316,4.06750884,147.3,147.28,6.78978815]
[1751773481615,4.06750884,147.3,147.28,94.98978814]
[1751773484018,0.2,147.3,147.28,98.91729698]
[1751773484400,0.2,147.3,147.28,95.04978814]
[1751773487397,0.2,147.3,147.28,98.91729698]
[1751773487804,3.86750884,147.32,147.28,98.91729698]
[1751773488009,7.61861849,147.31,147.28,98.91729698]
[1751773488216,3.86750884,147.32,147.28,98.91729698]
[1751773488394,7.61863491,147.31,147.28,98.91729698]
[1751773488721,3.86750884,147.32,147.28,98.91729698]
[1751773489012,7.61863491,147.31,147.28,98.91729698]
[1751773489229,3.86750884,147.32,147.28,98.91729698]
[1751773489401,7.61870059,147.31,147.28,98.91729698]
[1751773489588,3.86750884,147.32,147.28,98.91729698]
[1751773489806,7.61870095,147.31,147.28,98.91729698]
[1751773490007,3.86750884,147.32,147.28,98.91729698]
[1751773490298,7.6188213,147.31,147.28,98.91729698]
[1751773490497,3.86750884,147.32,147.28,98.91729698]
[1751773490698,7.61881866,147.31,147.28,98.91729698]
[1751773490924,3.86750884,147.32,147.28,98.91729698]
[1751773491127,7.61881866,147.31,147.28,98.91729698]
[1751773491427,3.86750884,147.32,147.28,115.83176737]
[1751773491621,7.6189842,147.31,147.28,115.83176737]
[1751773491793,3.86750884,147.32,147.28,111.96425853]
[1751773491992,7.61869191,147.31,147.28,111.96425853]
[1751773492195,3.86750884,147.32,147.28,111.96425853]
[1751773492422,7.61906274,147.31,147.28,111.96425853]
[1751773492622,3.86750884,147.32,147.28,111.96425853]
[1751773492824,7.61906274,147.31,147.28,111.96425853]
[1751773493026,3.86750884,147.32,147.28,111.96425853]
[1751773493223,7.61934221,147.31,147.28,111.96425853]
[1751773493521,3.86750884,147.32,147.28,111.96425853]
[1751773493701,7.61934221,147.31,147.28,111.96425853]
[1751773493901,3.86750884,147.32,147.28,111.96425853]
[1751773494101,7.61933954,147.31,147.28,111.96425853]
[1751773494297,3.86750884,147.32,147.28,111.96425853]
[1751773494498,7.61966935,147.31,147.28,111.96425853]
[1751773494720,3.86750884,147.32,147.28,111.96425853]
[1751773494919,7.61966935,147.31,147.28,111.96425853]
[1751773495218,3.86750884,147.32,147.28,111.96425853]
[1751773495398,7.62005735,147.31,147.28,111.96425853]
[1751773495597,3.86750884,147.32,147.28,111.96425853]
[1751773495815,7.62005735,147.31,147.28,111.96425853]
[1751773496097,7.62050686,147.3,147.28,111.96425853]
[1751773496317,3.86750884,147.32,147.28,111.96425853]
[1751773496503,7.62050422,147.31,147.28,111.96425853]
[1751773496707,7.62050422,147.3,147.28,111.96425853]
[1751773496904,3.86750884,147.32,147.28,111.96425853]
[1751773497106,7.62050422,147.31,147.28,111.96425853]
[1751773497307,7.62050422,147.3,147.28,111.96425853]
[1751773497523,3.86750884,147.32,147.28,111.96425853]
[1751773497708,7.62101168,147.31,147.28,111.96425853]
[1751773497907,7.62101168,147.3,147.28,111.96425853]
[1751773498222,3.86750884,147.32,147.28,111.96425853]
[1751773498420,7.62158886,147.31,147.28,111.96425853]
[1751773498743,7.62158886,147.3,147.28,111.96425853]
[1751773498926,3.86750884,147.32,147.28,111.96425853]
[1751773499124,7.62158886,147.31,147.28,111.96425853]
[1751773499303,7.62158886,147.3,147.28,111.96425853]
[1751773499504,3.86750884,147.32,147.28,111.96425853]
[1751773499706,7.62223592,147.31,147.28,111.96425853]
[1751773499920,7.62223592,147.3,147.28,111.96425853]
[1751773500097,3.86750884,147.32,147.28,111.96425853]
[1751773500300,7.62277386,147.31,147.28,111.96425853]
[1751773500502,13.39449492,147.34,147.29,3.86750884]
[1751773500698,7.62189677,147.33,147.29,92.06750883]
[1751773500906,7.62189677,147.32,147.3,3.86750884]
[1751773501110,3.86750884,147.34,147.3,3.86750884]
[1751773501311,3.86750884,147.34,147.29,88.19999999]
[1751773501312,11.49001524,147.33,147.29,92.06750883]
[1751773501523,7.6225064,147.32,147.29,92.06750883]
[1751773501715,3.86750884,147.32,147.29,88.19999999]
[1751773503023,3.86750884,147.32,147.3,6.78886625]
[1751773504127,7.62376792,147.31,147.3,6.78886625]
[1751773504424,7.62376792,147.31,147.3,94.98886624]
[1751773507817,11.49127676,147.31,147.3,94.98886624]
[1751773508436,7.62376792,147.31,147.3,94.98886624]
[1751773514930,3.89750884,147.32,147.3,94.98886624]
[1751773515140,7.62978352,147.31,147.3,94.98886624]
[1751773517138,7.62978352,147.31,147.3,98.85637508]
[1751773517941,7.6289547,147.31,147.3,98.85637508]
[1751773519214,0.03,147.32,147.3,98.85637508]
[1751773520215,7.62858211,147.31,147.3,98.85637508]
[1751773520938,7.62838678,147.31,147.3,98.85637508]
[1751773525847,7.62838678,147.31,147.3,94.98886624]
[1751773526648,3.89750884,147.32,147.3,94.98886624]
[1751773532950,0.03,147.32,147.3,94.98886624]
[1751773533248,3.89750884,147.32,147.3,94.98886624]
[1751773533428,0.03,147.32,147.3,94.98886624]
[1751773538455,7.63407467,147.31,147.3,94.98886624]
[1751773544258,11.50158351,147.31,147.3,94.98886624]
[1751773544439,11.50158351,147.31,147.29,6.78922214]
[1751773544755,0.03,147.32,147.28,95.04962448]
[1751773544756,11.50158351,147.3,147.28,95.04962448]
[1751773544942,11.50158351,147.29,147.28,95.04962448]
[1751773549750,11.50158351,147.29,147.28,0.06]
[1751773553175,7.63407467,147.29,147.28,0.06]
[1751773553471,11.50158351,147.29,147.28,0.06]
[1751773560785,7.63407467,147.29,147.28,0.06]
[1751773560952,3.89750884,147.31,147.28,0.06]
[1751773561154,0.03,147.31,147.28,3.92750884]
[1751773561580,0.03,147.31,147.28,92.12750883]
[1751773563567,0.03,147.31,147.29,6.78932717]
[1751773567382,0.03,147.31,147.29,94.98932716]
[1751773568288,0.03,147.31,147.29,98.856836]
[1751773570384,0.03,147.31,147.3,3.86750884]
[1751773571272,0.03,147.31,147.3,10.65637509]
[1751773572189,0.03,147.31,147.3,98.85637508]
[1751773572576,0.03,147.31,147.3,94.98886624]
[1751773572786,0.03,147.31,147.3,98.85637508]
[1751773577000,0.03,147.31,147.3,94.98886624]
[1751773578808,0.03,147.31,147.3,98.85637508]
[1751773581200,0.03,147.31,147.3,94.98886624]
[1751773597512,0.03,147.31,147.3,95.04886624]
[1751773598516,0.03,147.31,147.3,98.91637508]
[1751773600910,1e-08,147.31,147.3,99.05853665]
[1751773601402,1e-08,147.31,147.3,104.5955671]
[1751773610726,11.19150308,147.38,147.31,0.14216157]
[1751773611032,7.6287614,147.37,147.33,3.86750884]
[1751773611222,7.6287614,147.36,147.33,3.86750884]
[1751773611528,7.6287614,147.35,147.33,3.86750884]
[1751773611722,15.05901192,147.38,147.33,92.06750883]
[1751773611929,7.62793966,147.37,147.34,6.78702321]
[1751773612103,7.62793966,147.36,147.34,6.78702321]
[1751773612307,7.62793966,147.35,147.34,6.78702321]
[1751773612508,7.62793966,147.35,147.34,94.9870232]
[1751773618147,3.86750884,147.37,147.34,94.9870232]
[1751773618324,7.62301836,147.36,147.34,94.9870232]
[1751773618520,3.86750884,147.37,147.34,94.9870232]
[1751773618868,0.03,147.35,147.34,94.9870232]
[1751773622146,3.86750884,147.37,147.34,94.9870232]
[1751773622343,7.62156892,147.36,147.34,94.9870232]
[1751773622644,3.86750884,147.37,147.34,94.9870232]
[1751773622848,7.62156892,147.36,147.34,94.9870232]
[1751773623060,3.86750884,147.37,147.34,94.9870232]
[1751773623231,7.62152337,147.36,147.34,94.9870232]
[1751773623430,3.86750884,147.37,147.34,94.9870232]
[1751773623644,7.62124671,147.36,147.34,94.9870232]
[1751773623830,3.86750884,147.37,147.34,94.9870232]
[1751773624045,7.62124671,147.36,147.34,94.9870232]
[1751773624231,3.86750884,147.37,147.34,94.9870232]
[1751773624432,7.6209934,147.36,147.34,94.9870232]
[1751773624635,3.86750884,147.37,147.34,94.9870232]
[1751773624832,7.6209934,147.36,147.34,94.9870232]
[1751773625153,3.86750884,147.37,147.34,94.9870232]
[1751773625353,7.6208023,147.36,147.34,94.9870232]
[1751773625653,3.86750884,147.37,147.34,94.9870232]
[1751773625951,7.6208023,147.36,147.34,94.9870232]
[1751773626131,3.86750884,147.37,147.34,94.9870232]
[1751773626333,7.62067171,147.36,147.34,94.9870232]
[1751773626532,3.86750884,147.37,147.34,94.9870232]
[1751773626734,7.62067171,147.36,147.34,94.9870232]
[1751773626935,3.86750884,147.37,147.34,94.9870232]
[1751773627233,7.62067171,147.36,147.34,94.9870232]
[1751773627431,3.86750884,147.37,147.34,94.9870232]
[1751773627648,7.62059974,147.36,147.34,94.9870232]
[1751773627832,3.86750884,147.37,147.34,94.9870232]
[1751773628043,7.6205971,147.36,147.34,94.9870232]
[1751773628234,3.86750884,147.37,147.34,94.9870232]
[1751773628434,7.62058482,147.36,147.34,94.9870232]
[1751773628652,3.86750884,147.37,147.34,94.9870232]
[1751773628834,7.62058482,147.36,147.34,94.9870232]
[1751773629041,3.86750884,147.37,147.34,94.9870232]
[1751773629345,7.62068071,147.36,147.34,94.9870232]
[1751773629545,3.86750884,147.37,147.34,94.9870232]
[1751773629735,7.62062851,147.36,147.34,94.9870232]
[1751773630033,3.86750884,147.37,147.34,94.9870232]
[1751773630332,7.62075779,147.36,147.34,94.9870232]
[1751773630532,3.86750884,147.37,147.34,94.9870232]
[1751773630747,7.62073156,147.36,147.34,94.9870232]
[1751773630954,3.86750884,147.37,147.34,94.9870232]
[1751773631135,7.62073156,147.36,147.34,94.9870232]
[1751773631341,3.86750884,147.37,147.34,94.9870232]
[1751773631544,7.62089485,147.36,147.34,94.9870232]
[1751773631741,3.86750884,147.37,147.34,94.9870232]
[1751773632042,7.62089485,147.36,147.34,94.9870232]
[1751773632244,3.86750884,147.37,147.34,94.9870232]
[1751773632444,7.62112254,147.36,147.34,94.9870232]
[1751773632636,3.86750884,147.37,147.34,94.9870232]
[1751773636062,35.52640308,147.4,147.34,94.9870232]
[1751773636267,7.62087365,147.39,147.34,115.82209006]
[1751773636559,11.48838249,147.38,147.34,115.82209006]
[1751773636765,7.62087365,147.37,147.34,115.82209006]
[1751773636969,3.86750884,147.38,147.34,115.82209006]
[1751773637138,7.62034791,147.37,147.34,115.82209006]
[1751773637338,3.86750884,147.38,147.34,115.82209006]
[1751773637661,7.61997889,147.37,147.34,115.82209006]
[1751773637855,3.86750884,147.38,147.34,115.82209006]
[1751773638058,7.61997889,147.37,147.34,115.82209006]
[1751773638242,3.86750884,147.38,147.34,115.82209006]
[1751773638437,7.61990642,147.37,147.34,115.82209006]
[1751773638746,3.86750884,147.38,147.34,115.82209006]
[1751773638938,7.61990642,147.37,147.34,115.82209006]
[1751773639139,3.86750884,147.38,147.34,115.82209006]
[1751773639340,7.61998446,147.37,147.34,115.82209006]
[1751773639551,3.86750884,147.38,147.34,115.82209006]
[1751773639845,7.61998181,147.37,147.34,115.82209006]
[1751773640055,3.86750884,147.38,147.34,115.82209006]
[1751773640259,7.6202015,147.37,147.34,115.82209006]
[1751773640462,3.86750884,147.38,147.34,115.82209006]
[1751773640664,7.6202015,147.37,147.34,115.82209006]
[1751773640857,3.86750884,147.38,147.34,115.82209006]
[1751773641063,7.6202015,147.37,147.34,115.82209006]
[1751773641249,3.86750884,147.38,147.34,115.82209006]
[1751773641453,7.62058372,147.37,147.34,115.82209006]
[1751773641652,3.86750884,147.38,147.34,115.82209006]
[1751773641853,7.62058107,147.37,147.35,3.86750884]
[1751773642042,3.86750884,147.39,147.35,3.86750884]
[1751773642241,7.6214992,147.38,147.35,3.86750884]
[1751773642458,7.6214992,147.37,147.36,6.78610206]
[1751773643060,7.6214992,147.37,147.36,94.98610205]
[1751773644770,3.86750884,147.39,147.36,94.98610205]
[1751773644941,7.62242346,147.38,147.36,94.98610205]
[1751773645140,3.86750884,147.39,147.36,94.98610205]
[1751773645446,7.62327316,147.38,147.36,94.98610205]
[1751773645750,3.86750884,147.39,147.36,94.98610205]
[1751773646050,7.62327316,147.38,147.36,94.98610205]
[1751773646249,3.86750884,147.39,147.36,94.98610205]
[1751773646453,7.62276698,147.38,147.36,94.98610205]
[1751773646652,3.86750884,147.39,147.36,94.98610205]
[1751773646860,7.62276698,147.38,147.36,94.98610205]
[1751773647046,3.86750884,147.39,147.36,94.98610205]
[1751773647246,7.62297908,147.38,147.36,94.98610205]
[1751773647455,3.86750884,147.39,147.36,94.98610205]
[1751773647661,7.62253615,147.38,147.36,94.98610205]
[1751773647967,3.86750884,147.39,147.36,94.98610205]
[1751773648168,7.62253615,147.38,147.36,94.98610205]
[1751773648369,3.86750884,147.39,147.36,94.98610205]
[1751773648545,7.62240236,147.38,147.36,94.98610205]
[1751773648741,3.86750884,147.39,147.36,94.98610205]
[1751773648945,7.62240501,147.38,147.36,94.98610205]
[1751773649163,3.86750884,147.39,147.36,94.98610205]
[1751773649367,7.62236785,147.38,147.36,94.98610205]
[1751773649571,3.86750884,147.39,147.36,94.98610205]
[1751773649750,7.62236785,147.38,147.36,94.98610205]
[1751773649950,3.86750884,147.39,147.36,94.98610205]
[1751773650151,7.62236785,147.38,147.36,94.98610205]
[1751773650350,3.86750884,147.39,147.36,94.98610205]
[1751773650551,7.62241629,147.38,147.36,94.98610205]
[1751773650759,3.86750884,147.39,147.36,94.98610205]
[1751773650971,7.62241629,147.38,147.36,94.98610205]
[1751773651273,3.86750884,147.39,147.36,94.98610205]
[1751773651452,11.4900748,147.38,147.36,94.98610205]
[1751773651768,3.86750884,147.38,147.36,94.98610205]
[1751773652269,11.09880308,147.41,147.36,94.98610205]
[1751773652270,11.49081013,147.37,147.36,94.98610205]
[1751773652444,11.49081013,147.37,147.36,88.19999999]
[1751773653271,11.49081013,147.37,147.35,88.19999999]
[1751773653448,11.49081013,147.36,147.35,88.19999999]
[1751773655172,11.49081013,147.36,147.35,94.98656259]
[1751773656576,7.62330129,147.36,147.35,94.98656259]
[1751773657256,7.626182,147.36,147.35,94.98656259]
[1751773661360,7.626182,147.36,147.35,95.04656259]
[1751773664382,7.626182,147.36,147.35,88.25999999]
[1751773664955,7.626182,147.36,147.35,95.04656259]
[1751773671426,11.49369084,147.36,147.35,95.04656259]
[1751773671693,7.626182,147.36,147.35,95.04656259]
[1751773672495,7.63024987,147.36,147.35,95.04656259]
[1751773676987,7.63024987,147.36,147.35,6.8465626]
[1751773678285,7.63228133,147.36,147.35,0.06]
[1751773682784,7.63228133,147.36,147.35,95.0465626]
[1751773690115,11.49979017,147.36,147.35,6.8465626]
[1751773690397,11.49979017,147.36,147.35,0.06]
[1751773694793,7.63228133,147.36,147.35,0.06]
[1751773696094,7.63228133,147.36,147.35,6.8465626]
[1751773697690,7.63228133,147.36,147.35,10.71407144]
[1751773698205,7.63228133,147.36,147.35,98.91407144]
[1751773698410,11.49979017,147.36,147.35,95.0465626]
[1751773698817,7.63228133,147.36,147.35,95.0465626]
[1751773703384,7.63228133,147.36,147.35,6.8465626]
[1751773703931,11.49979017,147.36,147.35,6.8465626]
[1751773704415,7.63228133,147.36,147.35,0.06]
[1751773704620,11.49979017,147.36,147.35,0.06]
[1751773705321,21.04014183,147.36,147.35,0.06]
[1751773707026,36.51017719,147.36,147.35,0.06]
[1751773707208,39.67980055,147.36,147.32,6.92]
[1751773707522,3.86750884,147.33,147.32,6.92]
[1751773707719,11.49979017,147.33,147.32,6.92]
[1751773708619,7.63228133,147.33,147.32,13.70794461]
[1751773718329,7.63228133,147.33,147.32,101.90794461]
[1751773728236,7.63228133,147.33,147.32,94.98794461]
[1751773734741,3.89750884,147.35,147.32,94.98794461]
[1751773734925,7.6227214,147.34,147.32,94.98794461]
[1751773735125,7.6227214,147.33,147.32,94.98794461]
[1751773751069,7.6227214,147.33,147.32,98.85545345]
[1751773753065,7.6227214,147.33,147.32,94.98794461]
[1751773753266,7.6227214,147.33,147.32,98.85545345]
[1751773762174,7.6227214,147.33,147.32,94.98794461]
[1751773762351,7.6227214,147.33,147.32,98.85545345]
[1751773779984,7.6227214,147.33,147.32,94.98794461]
[1751773790187,3.89750884,147.35,147.32,94.98794461]
[1751773790394,7.63663111,147.34,147.32,94.98794461]
[1751773790578,7.63663111,147.33,147.32,94.98794461]
[1751773811013,7.63663111,147.33,147.32,98.85545345]
[1751773811721,7.63663111,147.33,147.32,124.85545345]
[1751773812513,0.03,147.35,147.32,141.82531497]
[1751773812702,7.63574777,147.34,147.32,137.95780613]
[1751773812903,0.03,147.35,147.33,3.86750884]
[1751773813096,7.63575042,147.34,147.32,137.95780613]
[1751773813307,0.03,147.35,147.32,137.95780613]
[1751773813506,7.63387646,147.34,147.32,137.95780613]
[1751773813697,0.03,147.35,147.32,137.95780613]
[1751773813901,7.63375737,147.34,147.32,137.95780613]
[1751773814116,0.03,147.35,147.32,137.95780613]
[1751773814305,0.03,147.35,147.34,10.65453205]
[1751773814511,7.66202776,147.35,147.34,10.65453205]
[1751773815840,7.66202776,147.35,147.34,98.85453205]
[1751773816929,0.03,147.35,147.34,98.85453205]
[1751773817133,7.6594039,147.35,147.34,98.85453205]
[1751773817325,0.03,147.35,147.34,98.85453205]
[1751773819439,0.03,147.37,147.34,115.96425164]
[1751773819637,0.03,147.37,147.36,3.86750884]
[1751773819834,7.65550453,147.37,147.36,3.86750884]
[1751773820816,7.65550453,147.37,147.36,10.6536109]
[1751773821044,7.65550453,147.37,147.36,6.78610206]
[1751773821243,7.65550453,147.37,147.36,10.6536109]
[1751773822719,7.65107666,147.37,147.36,10.6536109]
[1751773824824,7.65107666,147.37,147.36,98.8536109]
[1751773826162,0.03,147.37,147.36,98.8536109]
[1751773836781,0.03,147.37,147.36,94.98610206]
[1751773837090,0.03,147.37,147.36,98.8536109]
[1751773863605,1e-08,147.37,147.36,98.99577247]
[1751773863906,7.62771206,147.42,147.4,26.0]
[1751773864091,9.52634583,147.45,147.41,3.86750884]
[1751773864407,9.52634583,147.45,147.43,6.78288001]
[1751773864408,7.6273782,147.44,147.43,6.78288001]
[1751773865197,7.6273782,147.44,147.43,10.65038885]
[1751773865408,0.2,147.46,147.44,0.14216157]
[1751773865603,0.2,147.46,147.45,3.86750884]
[1751773865805,0.2,147.47,147.45,3.86750884]
[1751773866000,0.2,147.47,147.46,29.86750884]
[1751773866407,0.2,147.47,147.46,36.6490089]
[1751773867207,1e-08,147.47,147.46,124.99117046]
[1751773867903,1e-08,147.47,147.46,94.98150005]
[1751773870219,1e-08,147.47,147.46,98.84900889]
[1751773870712,1e-08,147.47,147.46,94.98150005]
[1751773870913,1e-08,147.47,147.45,6.78188188]
[1751773873909,1e-08,147.47,147.45,10.64939072]
[1751773875216,1e-08,147.47,147.45,98.84939071]
[1751773877121,1e-08,147.47,147.45,94.98188187]
[1751773877313,1e-08,147.47,147.45,98.84939071]
[1751773880120,1e-08,147.47,147.45,94.98188187]
[1751773880420,1e-08,147.47,147.45,98.84939071]
[1751773886822,1e-08,147.47,147.45,94.98188187]
[1751773897939,1e-08,147.47,147.45,98.84939071]
[1751773898625,1e-08,147.47,147.46,3.86750884]
[1751773900718,1e-08,147.47,147.46,10.6490089]
[1751773901931,1e-08,147.47,147.46,6.78150006]
[1751773904735,1e-08,147.47,147.46,94.98150005]
[1751773913545,7.62499393,147.47,147.46,94.98150005]
[1751773921549,11.49250277,147.47,147.46,0.06]
[1751773931480,18.27354298,147.47,147.46,0.06]
[1751773931648,27.79988881,147.47,147.46,0.06]
[1751773933448,18.27354298,147.47,147.46,0.06]
[1751773940803,27.79988881,147.47,147.46,0.06]
[1751773941010,61.87988881,147.47,147.46,0.06]
[1751773941165,96.1417346,147.47,147.46,0.06]
[1751773941498,18.64964886,147.44,147.37,101.90537313]
[1751773941664,3.86750884,147.4,147.37,101.90537313]
[1751773943279,3.86750884,147.4,147.37,101.96537313]
[1751773946188,3.86750884,147.39,147.37,101.96537313]
[1751773948082,6.78288001,147.43,147.37,101.96537313]
[1751773948283,3.86750884,147.39,147.37,13.76537314]
[1751773950499,3.86750884,147.38,147.37,13.76537314]
[1751773951878,6.78288001,147.43,147.37,13.76537314]
[1751773952099,3.86750884,147.39,147.37,13.76537314]
[1751773953800,7.59020988,147.42,147.37,13.76537314]
[1751773954007,3.86750884,147.4,147.37,101.96537313]
[1751773955800,3.86750884,147.41,147.37,101.96537313]
[1751773956610,7.59020988,147.43,147.38,3.86750884]
[1751773956791,7.59020988,147.44,147.38,3.86750884]
[1751773956990,3.86750884,147.42,147.38,3.86750884]
[1751773957324,3.86750884,147.42,147.37,122.79698592]
[1751773957993,11.45867622,147.42,147.37,122.79698592]